bitfinex/quotes_BTCUSD_20240810
["timestamp","ask_amount","ask_price","bid_price","bid_amount"]
[1723303949839,0.05973,60769.0,60768.0,1.92549535]
[1723303950041,0.05973,60769.0,60768.0,2.02821604]
[1723303950246,0.05973,60769.0,60768.0,1.95989978]
[1723303950587,0.05973,60769.0,60768.0,1.70638843]
[1723303951360,0.05973,60769.0,60768.0,1.78911044]
[1723303951761,0.05973,60769.0,60768.0,1.8580934]
[1723303951974,0.05973,60769.0,60768.0,1.96089371]
[1723303952342,0.05973,60769.0,60768.0,2.02921006]
[1723303952684,0.05973,60769.0,60768.0,2.20000093]
[1723303953627,0.05973,60769.0,60768.0,2.04914647]
[1723303954680,0.05973,60769.0,60768.0,2.02914647]
[1723303955343,0.05973,60769.0,60768.0,1.92641113]
[1723303955519,0.05973,60769.0,60768.0,2.04927848]
[1723303955716,0.05973,60769.0,60768.0,1.946412]
[1723303955917,0.05973,60769.0,60768.0,2.04930435]
[1723303956173,0.05973,60769.0,60768.0,2.14773538]
[1723303956363,0.05973,60769.0,60768.0,2.04930435]
[1723303958177,0.05973,60769.0,60768.0,2.15234314]
[1723303958967,0.05973,60769.0,60768.0,2.14351638]
[1723303959318,0.05973,60769.0,60768.0,2.1435138]
[1723303961429,0.05973,60769.0,60768.0,2.15218731]
[1723303961734,0.05973,60769.0,60768.0,2.02914852]
[1723303962917,0.05973,60769.0,60768.0,1.44683239]
[1723303963114,0.05973,60769.0,60768.0,1.68051803]
[1723303963324,0.05973,60769.0,60768.0,2.23174231]
[1723303963519,0.05973,60769.0,60768.0,2.24161214]
[1723303963731,0.05973,60769.0,60768.0,2.19893863]
[1723303964356,0.05973,60769.0,60768.0,2.22193863]
[1723303964563,0.05973,60769.0,60768.0,2.33593863]
[1723303965287,0.05973,60769.0,60768.0,2.3260688]
[1723303965452,0.05973,60769.0,60768.0,2.3120688]
[1723303966287,0.05973,60769.0,60768.0,2.4906288]
[1723303966532,0.05973,60769.0,60768.0,1.87853253]
[1723303966757,0.05973,60769.0,60768.0,2.32471631]
[1723303966977,0.05973,60769.0,60768.0,2.0186349]
[1723303967204,0.05973,60769.0,60768.0,2.34152988]
[1723303967421,0.05973,60769.0,60768.0,2.45847589]
[1723303967670,0.05973,60769.0,60768.0,2.43047589]
[1723303967896,0.05973,60769.0,60768.0,2.39980238]
[1723303968342,0.05973,60769.0,60768.0,2.43047589]
[1723303969064,0.05973,60769.0,60768.0,2.45847589]
[1723303969526,0.05973,60769.0,60768.0,2.43047589]
[1723303969783,0.05973,60769.0,60768.0,2.44447589]
[1723303970031,0.05973,60769.0,60768.0,1.98147854]
[1723303970275,0.05973,60769.0,60768.0,2.41343829]
[1723303970526,0.05973,60769.0,60768.0,2.42743829]
[1723303971656,0.05973,60769.0,60768.0,2.4581118]
[1723303972555,0.02973,60769.0,60768.0,2.4581118]
[1723303973621,0.00831,60771.0,60770.0,0.92436651]
[1723303973736,0.00831,60771.0,60770.0,1.63238912]
[1723303973940,0.00831,60771.0,60770.0,2.23074719]
[1723303974195,0.00831,60771.0,60770.0,2.09537561]
[1723303974497,0.00831,60771.0,60770.0,2.12604912]
[1723303975354,0.00831,60771.0,60770.0,2.10404857]
[1723303975575,0.00831,60771.0,60770.0,2.11804857]
[1723303975769,0.00831,60771.0,60770.0,2.20079451]
[1723303976450,0.00831,60771.0,60770.0,2.21479451]
[1723303976829,0.00831,60771.0,60770.0,2.21074835]
[1723303977015,0.00831,60771.0,60770.0,2.20207484]
[1723303977420,0.00831,60771.0,60770.0,1.86081393]
[1723303977660,0.00831,60771.0,60770.0,2.20152929]
[1723303978018,0.03801,60771.0,60770.0,2.03077062]
[1723303978219,0.03801,60771.0,60770.0,1.99331845]
[1723303978397,0.03801,60771.0,60770.0,2.10727244]
[1723303978842,0.03801,60771.0,60770.0,2.10727506]
[1723303979394,0.03801,60771.0,60770.0,2.12727506]
[1723303979594,0.03801,60771.0,60770.0,2.10727506]
[1723303979797,0.03801,60771.0,60770.0,2.04457506]
[1723303980530,0.03801,60771.0,60770.0,2.09860155]
[1723303980740,0.03801,60771.0,60770.0,2.2015494]
[1723303981130,0.03801,60771.0,60770.0,2.21022291]
[1723303981352,0.03801,60771.0,60770.0,2.34925418]
[1723303981722,0.03801,60771.0,60770.0,2.35792769]
[1723303982132,0.03801,60771.0,60770.0,2.34925418]
[1723303982504,0.03801,60771.0,60770.0,2.48412067]
[1723303982742,0.03801,60771.0,60770.0,2.51479418]
[1723303983146,0.03801,60771.0,60770.0,2.3670894]
[1723303983664,0.03801,60771.0,60770.0,2.36731867]
[1723303984098,0.03801,60771.0,60770.0,2.33664516]
[1723303984308,0.03754179,60771.0,60770.0,2.33664516]
[1723303984716,0.03754179,60771.0,60770.0,2.36731867]
[1723303985066,0.03754179,60771.0,60770.0,2.35331867]
[1723303985462,0.03754179,60771.0,60770.0,2.33931867]
[1723303985665,0.03754179,60771.0,60770.0,2.35331867]
[1723303985891,0.03754179,60771.0,60770.0,2.36731867]
[1723303986095,0.03754179,60771.0,60770.0,2.32264516]
[1723303986435,0.03754179,60771.0,60770.0,2.35331867]
[1723303986999,0.03754179,60771.0,60770.0,2.36731835]
[1723303987440,0.03754179,60771.0,60770.0,2.32264484]
[1723303987642,0.03754179,60771.0,60770.0,2.32264405]
[1723303987820,0.03754179,60771.0,60770.0,2.35331756]
[1723303988049,0.03754179,60771.0,60770.0,2.33931756]
[1723303988251,0.03754179,60771.0,60770.0,2.34917747]
[1723303988585,0.03754179,60771.0,60770.0,2.35331756]
[1723303988950,0.03754179,60771.0,60770.0,2.48719805]
[1723303989159,0.03754179,60771.0,60770.0,2.54173147]
[1723303989703,0.03754179,60771.0,60770.0,2.52773147]
[1723303989879,0.03754179,60771.0,60770.0,2.51373147]
[1723303990471,0.03754179,60771.0,60770.0,2.52772552]
[1723303991247,0.03754179,60771.0,60770.0,2.54172552]
[1723303991731,0.03754179,60771.0,60770.0,2.52772552]
[1723303992076,0.03754179,60771.0,60770.0,2.54172552]
[1723303992249,0.03754179,60771.0,60770.0,2.53187117]
[1723303992658,0.03754179,60771.0,60770.0,2.55487117]
[1723303994144,0.03754179,60771.0,60770.0,2.55663532]
[1723303995557,0.00831,60773.0,60772.0,0.19107351]
[1723303995837,0.00831,60773.0,60772.0,1.85231686]
[1723303996068,0.00831,60773.0,60772.0,1.63435232]
[1723303996680,0.00831,60773.0,60772.0,2.45709732]
[1723303997095,0.00831,60773.0,60772.0,2.47109732]
[1723303997272,0.00831,60773.0,60772.0,2.68898803]
[1723303997471,0.00831,60773.0,60772.0,2.67453898]
[1723303997874,0.00831,60773.0,60772.0,2.50376259]
[1723303998097,0.00831,60773.0,60772.0,2.68851513]
[1723303998482,0.002119,60775.0,60774.0,0.04567351]
[1723303998483,1e-06,60775.0,60774.0,0.04567351]
[1723303998658,0.08194646,60789.0,60788.0,0.27132651]
[1723303998861,0.0001,60789.0,60788.0,1.77790001]
[1723303999091,0.0001,60789.0,60788.0,2.21141449]
[1723303999289,0.0001,60789.0,60788.0,2.10850252]
[1723303999912,0.0001,60789.0,60788.0,2.35875222]
[1723304000166,0.0001,60789.0,60788.0,2.39575222]
[1723304000374,0.0001,60789.0,60788.0,2.14550252]
[1723304000895,0.0001,60789.0,60788.0,2.13015523]
[1723304001021,0.000931,60789.0,60788.0,2.44868688]
[1723304001235,0.000931,60789.0,60788.0,2.19843993]
[1723304001804,0.000931,60789.0,60788.0,2.1457763]
[1723304002026,0.00831,60795.0,60794.0,0.78387351]
[1723304002197,0.48512,60802.0,60799.0,0.18461151]
[1723304002367,0.48512,60802.0,60799.0,1.5604241]
[1723304002368,0.00832,60802.0,60799.0,1.5604241]
[1723304002572,0.00832,60802.0,60799.0,2.15669418]
[1723304002788,0.00832,60802.0,60799.0,2.13669418]
[1723304003188,0.00832,60802.0,60799.0,2.08058862]
[1723304003387,0.00832,60802.0,60799.0,2.08926213]
[1723304003590,0.00832,60802.0,60801.0,0.93118851]
[1723304003772,0.0001,60809.0,60808.0,0.29035151]
[1723304003987,0.0001,60809.0,60808.0,1.91895007]
[1723304004185,0.00832,60811.0,60808.0,1.91895007]
[1723304004186,0.00832,60811.0,60810.0,0.45478851]
[1723304004484,0.00832,60811.0,60810.0,1.98623226]
[1723304004693,0.00832,60811.0,60810.0,2.24851506]
[1723304005034,0.00832,60811.0,60810.0,2.25051506]
[1723304005263,0.00832,60811.0,60810.0,2.05532636]
[1723304005696,0.00832,60811.0,60810.0,2.15669962]
[1723304005843,0.00832,60811.0,60810.0,2.19934072]
[1723304006057,0.00832,60811.0,60810.0,2.00005614]
[1723304006255,0.00832,60811.0,60810.0,2.04889982]
[1723304006530,0.00832,60811.0,60810.0,2.39440916]
[1723304006788,0.00832,60811.0,60810.0,2.40840916]
[1723304007001,0.00832,60811.0,60810.0,2.40840572]
[1723304007215,0.00832,60811.0,60810.0,2.41835979]
[1723304007437,0.00832,60811.0,60810.0,2.22326863]
[1723304007641,0.00832,60811.0,60810.0,2.00791602]
[1723304007819,0.00832,60811.0,60810.0,2.19325207]
[1723304007992,0.00832,60811.0,60810.0,2.05258953]
[1723304008194,0.00832,60811.0,60810.0,2.16111336]
[1723304008579,0.00832,60811.0,60810.0,2.17511336]
[1723304009175,0.00832,60811.0,60810.0,2.12244973]
[1723304009376,0.00832,60811.0,60810.0,2.0541935]
[1723304009608,0.00832,60811.0,60810.0,2.00476145]
[1723304009807,0.00832,60811.0,60810.0,1.82031545]
[1723304010421,0.00832,60811.0,60810.0,1.84031545]
[1723304010619,0.00832,60811.0,60810.0,1.84231545]
[1723304011001,0.00832,60811.0,60810.0,1.84204]
[1723304011713,0.00832,60811.0,60810.0,1.81136649]
[1723304012058,0.00832,60811.0,60810.0,1.84204]
[1723304012265,0.00832,60811.0,60810.0,2.006486]
[1723304012846,0.00832,60811.0,60810.0,1.84204]
[1723304013089,0.00832,60811.0,60810.0,2.006486]
[1723304013266,0.00832,60811.0,60810.0,1.84204]
[1723304013692,0.00832,60811.0,60810.0,1.82004]
[1723304013890,0.00832,60811.0,60810.0,1.63034]
[1723304014091,0.00832,60811.0,60810.0,1.465894]
[1723304014453,0.00832,60811.0,60810.0,1.36308943]
[1723304014858,0.00832,60811.0,60810.0,1.34908943]
[1723304015236,0.00832,60811.0,60810.0,1.36308943]
[1723304015614,0.00832,60811.0,60810.0,1.43908943]
[1723304016033,0.00832,60811.0,60810.0,1.45308943]
[1723304016454,0.08702,60811.0,60810.0,0.93682392]
[1723304016657,0.08702,60811.0,60810.0,1.10126992]
[1723304016918,0.08702,60811.0,60810.0,0.93682392]
[1723304017177,0.08702,60811.0,60810.0,1.10126992]
[1723304017383,0.08702,60811.0,60810.0,1.08726992]
[1723304017557,0.08702,60811.0,60810.0,1.07326992]
[1723304017902,0.08702,60811.0,60810.0,1.08726992]
[1723304018141,0.08702,60811.0,60810.0,1.10126992]
[1723304018595,0.08702,60811.0,60810.0,1.08726992]
[1723304018814,0.08702,60811.0,60810.0,1.10126992]
[1723304019032,0.08702,60811.0,60810.0,1.08726992]
[1723304019516,0.08702,60811.0,60810.0,1.10126992]
[1723304021842,0.08702,60811.0,60810.0,1.08726992]
[1723304022068,0.08702,60811.0,60810.0,1.10126992]
[1723304022498,0.08702,60811.0,60810.0,1.08726992]
[1723304022738,0.08702,60811.0,60810.0,1.10126992]
[1723304024184,0.08702,60811.0,60810.0,0.93682392]
[1723304025429,0.08702,60811.0,60810.0,1.10126992]
[1723304025937,0.08702,60811.0,60810.0,1.07326992]
[1723304026190,0.08702,60811.0,60810.0,1.10126992]
[1723304028071,0.08702,60811.0,60810.0,0.93682392]
[1723304028558,0.08702,60811.0,60810.0,0.78105143]
[1723304028559,0.14862,60811.0,60810.0,0.78105143]
[1723304028802,0.14862,60811.0,60810.0,0.77237792]
[1723304029263,0.14862,60811.0,60810.0,0.93682392]
[1723304029688,0.14862,60811.0,60810.0,1.10126992]
[1723304029692,0.14862,60811.0,60810.0,1.20399918]
[1723304029892,0.14862,60811.0,60810.0,1.21267664]
[1723304030231,0.14862,60811.0,60810.0,1.20400313]
[1723304030432,0.00832,60811.0,60810.0,1.21267664]
[1723304030638,0.00832,60811.0,60810.0,1.20400313]
[1723304031317,0.00832,60811.0,60810.0,1.19000313]
[1723304031499,0.00832,60811.0,60810.0,1.35444913]
[1723304031699,0.00832,60811.0,60810.0,1.36844913]
[1723304032146,0.00832,60811.0,60810.0,1.35444913]
[1723304032502,0.00832,60811.0,60810.0,1.36844913]
[1723304033046,0.00832,60811.0,60810.0,1.35444913]
[1723304033387,0.09122,60811.0,60810.0,1.04823064]
[1723304033588,0.15182,60811.0,60810.0,1.20400313]
[1723304034168,0.15182,60811.0,60810.0,1.21267664]
[1723304034374,0.15182,60811.0,60810.0,1.19867664]
[1723304034574,0.15182,60811.0,60810.0,1.17600313]
[1723304034819,0.15182,60811.0,60810.0,1.19000313]
[1723304035026,0.15182,60811.0,60810.0,1.21267664]
[1723304035195,0.15182,60811.0,60810.0,1.20400313]
[1723304035419,0.15182,60811.0,60810.0,1.20422559]
[1723304035620,0.15182,60811.0,60810.0,1.04845236]
[1723304035842,0.15182,60811.0,60810.0,1.03977885]
[1723304036038,0.15182,60811.0,60810.0,1.04845236]
[1723304036183,0.15182,60811.0,60810.0,1.03977885]
[1723304036819,0.15182,60811.0,60810.0,1.04845236]
[1723304037529,0.00832,60811.0,60810.0,1.04845236]
[1723304037726,0.00832,60811.0,60810.0,1.28282485]
[1723304037931,0.00832,60811.0,60810.0,1.29149836]
[1723304039122,0.00832,60811.0,60810.0,1.2830353]
[1723304039323,0.00832,60811.0,60810.0,1.04866281]
[1723304039525,0.09122,60811.0,60810.0,1.04866281]
[1723304039747,0.09122,60811.0,60810.0,1.0486769]
[1723304040572,0.09122,60811.0,60810.0,0.8842309]
[1723304040573,0.15182,60811.0,60810.0,0.8842309]
[1723304040956,0.15182,60811.0,60810.0,0.94549743]
[1723304041121,0.15182,60811.0,60810.0,1.0485304]
[1723304041318,0.15182,60811.0,60810.0,1.03985689]
[1723304042271,0.15182,60811.0,60810.0,1.0485304]
[1723304042495,0.06892,60811.0,60810.0,1.0485304]
[1723304042703,0.06892,60811.0,60810.0,0.8840844]
[1723304042906,0.06892,60811.0,60810.0,1.0485304]
[1723304043262,0.06892,60811.0,60810.0,1.20430289]
[1723304043526,0.00832,60811.0,60810.0,1.20430289]
[1723304044686,0.00832,60811.0,60810.0,1.3774224]
[1723304044859,0.00832,60811.0,60810.0,1.4774224]
[1723304045065,0.00832,60811.0,60810.0,1.37438943]
[1723304045234,0.00832,60811.0,60810.0,1.54579318]
[1723304045637,0.00832,60811.0,60810.0,1.53711967]
[1723304046422,0.00832,60811.0,60810.0,1.54668755]
[1723304047463,0.00832,60811.0,60810.0,1.55536106]
[1723304047668,0.00832,60811.0,60810.0,1.54668755]
[1723304048092,0.00832,60811.0,60810.0,1.55536106]
[1723304048388,0.00832,60811.0,60810.0,1.54668755]
[1723304048611,0.00832,60811.0,60810.0,1.44355845]
[1723304048813,0.00832,60811.0,60810.0,1.54721474]
[1723304049014,0.00832,60811.0,60810.0,1.47894009]
[1723304049161,0.00832,60811.0,60810.0,1.54721288]
[1723304049364,0.00832,60811.0,60810.0,1.62791288]
[1723304049578,0.00832,60811.0,60810.0,1.64658639]
[1723304049781,0.00832,60811.0,60810.0,2.0679074]
[1723304050024,0.00832,60811.0,60810.0,2.22487722]
[1723304050245,0.00832,60811.0,60810.0,2.25803311]
[1723304050469,0.00832,60811.0,60810.0,2.24933969]
[1723304050673,0.00832,60811.0,60810.0,2.23533969]
[1723304050818,0.00832,60811.0,60810.0,2.23539415]
[1723304051021,0.00832,60811.0,60810.0,2.23006766]
[1723304051226,0.00832,60811.0,60810.0,2.14789254]
[1723304051426,0.00832,60811.0,60810.0,2.03902118]
[1723304051638,0.00832,60811.0,60810.0,2.04769469]
[1723304051834,0.00832,60811.0,60810.0,2.23542118]
[1723304052059,0.00832,60811.0,60810.0,2.23009469]
[1723304052304,0.00832,60811.0,60810.0,2.23009701]
[1723304052504,0.00832,60811.0,60810.0,2.27911484]
[1723304052706,0.00832,60811.0,60810.0,2.26911484]
[1723304053106,0.00832,60811.0,60810.0,2.07271484]
[1723304053419,0.00832,60811.0,60810.0,2.08672357]
[1723304053632,0.00832,60811.0,60810.0,2.09672357]
[1723304053831,0.00832,60811.0,60810.0,2.01969701]
[1723304054049,0.00832,60811.0,60810.0,2.03369701]
[1723304054251,0.00832,60811.0,60810.0,2.12121853]
[1723304054476,0.00832,60811.0,60810.0,2.10721853]
[1723304054726,0.00832,60811.0,60810.0,2.09721853]
[1723304055059,0.00832,60811.0,60810.0,2.02369701]
[1723304055263,0.00832,60811.0,60810.0,2.12121853]
[1723304055661,0.00832,60811.0,60810.0,2.14544026]
[1723304055865,0.00832,60811.0,60810.0,2.13544026]
[1723304056147,0.00832,60811.0,60810.0,2.11100084]
[1723304056337,0.00832,60811.0,60810.0,2.03743743]
[1723304056682,0.00832,60811.0,60810.0,2.02343743]
[1723304056879,0.00832,60811.0,60810.0,2.09701344]
[1723304057277,0.00832,60811.0,60810.0,2.03743743]
[1723304057481,0.00832,60811.0,60810.0,1.04185692]
[1723304057706,0.00832,60811.0,60810.0,0.69015492]
[1723304057707,0.15322,60811.0,60810.0,0.69015492]
[1723304057928,0.235441,60811.0,60810.0,0.69015492]
[1723304058257,0.235441,60811.0,60810.0,0.66215492]
[1723304058258,0.15322,60811.0,60810.0,0.66215492]
[1723304058407,0.235441,60811.0,60810.0,0.67615492]
[1723304058609,0.235441,60811.0,60810.0,0.69015492]
[1723304058771,0.235441,60811.0,60810.0,0.67615492]
[1723304059820,0.564327,60811.0,60810.0,0.51234]
[1723304060024,0.72877,60811.0,60810.0,0.49334]
[1723304060244,0.72877,60811.0,60810.0,0.49834]
[1723304060816,0.72877,60811.0,60810.0,0.51834]
[1723304061168,0.72877,60811.0,60810.0,0.50634]
[1723304061367,0.72877,60811.0,60810.0,0.50434]
[1723304061719,0.72877,60811.0,60810.0,0.50734]
[1723304061720,0.399884,60811.0,60810.0,0.50734]
[1723304062689,0.15322,60811.0,60810.0,0.67982843]
[1723304063470,0.399884,60811.0,60810.0,0.50434]
[1723304063682,0.399884,60811.0,60810.0,0.51301351]
[1723304063848,0.399884,60811.0,60810.0,0.51201351]
[1723304064050,0.399884,60811.0,60810.0,0.52001351]
[1723304064302,0.399884,60811.0,60810.0,0.51501351]
[1723304064445,0.399884,60811.0,60810.0,0.50701351]
[1723304064647,0.399884,60811.0,60810.0,0.50934]
[1723304064978,0.399884,60811.0,60810.0,0.50234]
[1723304065177,0.399884,60811.0,60810.0,0.49834]
[1723304065415,0.399884,60811.0,60810.0,0.50634]
[1723304065995,0.564327,60811.0,60810.0,0.50634]
[1723304066170,0.399884,60811.0,60810.0,0.50634]
[1723304066374,0.399884,60811.0,60810.0,0.50134]
[1723304066375,0.564327,60811.0,60810.0,0.50134]
[1723304066777,0.564327,60811.0,60810.0,0.50634]
[1723304074557,0.72877,60811.0,60810.0,0.50634]
[1723304074919,0.82877,60811.0,60810.0,0.50634]
[1723304075107,0.87795987,60811.0,60810.0,0.50634]
[1723304075406,0.87794887,60811.0,60810.0,0.50634]
[1723304075604,0.87794887,60811.0,60810.0,0.50134]
[1723304075963,0.87794887,60811.0,60810.0,0.50434]
[1723304076345,0.82877,60811.0,60810.0,0.50434]
[1723304076751,0.82877,60811.0,60810.0,0.49634]
[1723304076980,0.82877,60811.0,60810.0,0.50234]
[1723304077183,0.82877,60811.0,60810.0,0.49934]
[1723304077385,0.82877,60811.0,60810.0,0.49334]
[1723304077628,0.83177,60811.0,60810.0,0.49434]
[1723304078008,0.82877,60811.0,60810.0,0.49334]
[1723304078576,0.83277,60811.0,60810.0,0.49434]
[1723304078916,0.83177,60811.0,60810.0,0.49334]
[1723304079119,0.83277,60811.0,60810.0,0.49334]
[1723304080027,0.82977,60811.0,60810.0,0.49334]
[1723304080210,0.82977,60811.0,60810.0,0.49434]
[1723304087322,0.93072012,60811.0,60810.0,0.49434]
[1723304087460,0.92972012,60811.0,60810.0,0.49434]
[1723304087671,0.93072012,60811.0,60810.0,0.49334]
[1723304087879,0.93064549,60811.0,60810.0,0.49534]
[1723304088117,0.82977,60811.0,60810.0,0.49534]
[1723304088623,0.68387,60811.0,60810.0,0.49534]
[1723304089278,0.254984,60811.0,60810.0,0.49534]
[1723304089482,0.255984,60811.0,60810.0,0.49534]
[1723304090552,0.255984,60811.0,60810.0,0.56014]
[1723304090750,0.254984,60811.0,60810.0,0.57381351]
[1723304090978,0.254984,60811.0,60810.0,0.57181351]
[1723304091382,0.254984,60811.0,60810.0,0.57481351]
[1723304092963,0.254984,60811.0,60810.0,0.50963825]
[1723304094665,0.090541,60811.0,60810.0,0.50963825]
[1723304094867,0.254984,60811.0,60810.0,0.50963825]
[1723304097317,0.00832,60811.0,60810.0,0.75355317]
[1723304101500,0.00832,60811.0,60810.0,0.50096474]
[1723304101501,0.090541,60811.0,60810.0,0.50096474]
[1723304101735,0.254984,60811.0,60810.0,0.50096474]
[1723304102352,0.254984,60811.0,60810.0,0.49596474]
[1723304102528,0.254984,60811.0,60810.0,0.50096474]
[1723304103176,0.419427,60811.0,60810.0,0.50096474]
[1723304103310,0.419427,60811.0,60810.0,0.49596474]
[1723304103520,0.66367,60811.0,60810.0,0.49596474]
[1723304103719,0.77559562,60811.0,60810.0,0.49596474]
[1723304103924,0.81020844,60811.0,60810.0,0.49684074]
[1723304104125,1.05595457,60811.0,60810.0,0.49684074]
[1723304104325,0.83765365,60811.0,60810.0,0.49684074]
[1723304104714,0.83765365,60811.0,60810.0,0.49384074]
[1723304104910,0.96171771,60811.0,60810.0,0.49584074]
[1723304105212,0.83865365,60811.0,60810.0,0.49384074]
[1723304105483,0.96171771,60811.0,60810.0,0.49384074]
[1723304105865,0.9700442,60811.0,60810.0,0.49384074]
[1723304105982,1.89823806,60811.0,60810.0,0.49384074]
[1723304106193,2.00823806,60811.0,60810.0,0.49384074]
[1723304106548,2.15291494,60811.0,60810.0,0.49384074]
[1723304106745,2.15391494,60811.0,60810.0,0.49384074]
[1723304107132,1.60806464,60811.0,60810.0,0.49475484]
[1723304107290,1.60706464,60811.0,60810.0,0.49475484]
[1723304107694,2.72101494,60811.0,60810.0,0.49475484]
[1723304107903,3.32301494,60811.0,60810.0,0.49475484]
[1723304108106,3.16333806,60811.0,60810.0,0.49475484]
[1723304108309,3.17333806,60811.0,60810.0,0.49475484]
[1723304108512,3.17533806,60811.0,60810.0,0.49475484]
[1723304108712,3.32748776,60811.0,60810.0,0.49475484]
[1723304108976,3.46428368,60811.0,60810.0,0.49475484]
[1723304109216,3.47628368,60811.0,60810.0,0.49475484]
[1723304109348,3.46628368,60811.0,60810.0,0.49475484]
[1723304109551,3.46670104,60811.0,60810.0,0.49475484]
[1723304110506,3.30155134,60811.0,60810.0,0.49475484]
[1723304110654,3.30255134,60811.0,60810.0,0.49475484]
[1723304112403,3.31255134,60811.0,60810.0,0.49475484]
[1723304113440,3.07405441,60811.0,60810.0,0.49475484]
[1723304113643,3.31410035,60811.0,60810.0,0.49475484]
[1723304114043,3.64263724,60811.0,60810.0,0.49475484]
[1723304114200,3.55759912,60811.0,60810.0,0.33030984]
[1723304114636,3.34066619,60811.0,60810.0,0.33030984]
[1723304114848,3.33966619,60811.0,60810.0,0.33030984]
[1723304115018,3.48543031,60811.0,60810.0,0.33030984]
[1723304115218,3.48543031,60811.0,60810.0,0.33130984]
[1723304115219,3.23620411,60811.0,60810.0,0.33130984]
[1723304115418,3.23620411,60811.0,60810.0,0.0037901]
[1723304115419,3.34115263,60811.0,60810.0,0.0037901]
[1723304115649,3.33915263,60811.0,60810.0,0.0027901]
[1723304115991,3.34115263,60811.0,60810.0,0.0037901]
[1723304116308,3.33915263,60811.0,60810.0,0.0027901]
[1723304116636,3.33815263,60811.0,60810.0,0.0017901]
[1723304117056,3.24120411,60811.0,60810.0,0.0027901]
[1723304117259,3.18029606,60811.0,60810.0,0.0027901]
[1723304117462,3.17429606,60811.0,60810.0,0.0017901]
[1723304117834,3.18629606,60811.0,60810.0,0.0027901]
[1723304118345,3.18629606,60811.0,60810.0,0.0037901]
[1723304118346,3.17329606,60811.0,60810.0,0.0037901]
[1723304118518,3.16129606,60811.0,60810.0,0.0027901]
[1723304118694,3.15129606,60811.0,60810.0,0.0017901]
[1723304118871,3.16129606,60811.0,60810.0,0.0027901]
[1723304119581,3.18429606,60811.0,60810.0,0.0027901]
[1723304120125,2.87335306,60811.0,60810.0,0.0037901]
[1723304120300,2.99642882,60811.0,60810.0,0.0037901]
[1723304120515,2.87335306,60811.0,60810.0,0.0037901]
[1723304122099,2.87202657,60811.0,60810.0,0.0037901]
[1723304122288,2.98180441,60811.0,60810.0,0.0037901]
[1723304122504,2.88335306,60811.0,60810.0,0.0037901]
[1723304122704,2.87835306,60811.0,60810.0,0.0037901]
[1723304123047,2.87702657,60811.0,60810.0,0.0037901]
[1723304123345,2.97547554,60811.0,60810.0,0.0037901]
[1723304123559,2.98180203,60811.0,60810.0,0.0037901]
[1723304123973,2.67972006,60811.0,60810.0,0.0037901]
[1723304124684,2.67985839,60811.0,60810.0,0.0037901]
[1723304124922,2.78691953,60811.0,60810.0,0.0017901]
[1723304125126,2.79191953,60811.0,60810.0,0.0027901]
[1723304125548,1.51481953,60811.0,60810.0,0.0027901]
[1723304125767,1.59341953,60811.0,60810.0,0.0027901]
[1723304125937,1.60341953,60811.0,60810.0,0.0027901]
[1723304126358,1.60841953,60811.0,60810.0,0.0037901]
[1723304127223,1.81276794,60811.0,60810.0,0.0037901]
[1723304127453,1.83576794,60811.0,60810.0,0.0037901]
[1723304127609,1.83553706,60811.0,60810.0,0.0037901]
[1723304128691,1.70261514,60811.0,60810.0,0.0037901]
[1723304129881,1.86643006,60811.0,60810.0,0.0037901]
[1723304130086,1.84180858,60811.0,60810.0,0.0037901]
[1723304130291,1.80133006,60811.0,60810.0,0.0037901]
[1723304130918,1.77670665,60811.0,60810.0,0.0037901]
[1723304131116,1.77670959,60811.0,60810.0,0.0037901]
[1723304131553,3.05380959,60811.0,60810.0,0.0037901]
[1723304131766,2.95536892,60811.0,60810.0,0.0037901]
[1723304131982,2.95952378,60811.0,60810.0,0.0037901]
[1723304132827,3.08257827,60811.0,60810.0,0.0037901]
[1723304133020,2.95952378,60811.0,60810.0,0.0037901]
[1723304133918,3.08257827,60811.0,60810.0,0.0037901]
[1723304134126,3.08321729,60811.0,60810.0,0.0037901]
[1723304134358,3.08319096,60811.0,60810.0,0.0037901]
[1723304134485,2.96013647,60811.0,60810.0,0.0037901]
[1723304134911,3.12428617,60811.0,60810.0,0.0037901]
[1723304135755,3.02101597,60811.0,60810.0,0.0037901]
[1723304135964,3.24759396,60811.0,60810.0,0.0037901]
[1723304136092,2.96038016,60811.0,60810.0,0.0037901]
[1723304136305,3.08344489,60811.0,60810.0,0.0037901]
[1723304136507,3.08344454,60811.0,60810.0,0.0037901]
[1723304136747,2.96038016,60811.0,60810.0,0.0037901]
[1723304136957,3.08344942,60811.0,60810.0,0.0037901]
[1723304137576,2.96038016,60811.0,60810.0,0.0037901]
[1723304138312,3.08345773,60811.0,60810.0,0.0037901]
[1723304138475,3.00485773,60811.0,60810.0,0.0037901]
[1723304138635,3.0734656,60811.0,60810.0,0.0037901]
[1723304138836,2.75723875,60811.0,60810.0,0.0037901]
[1723304139083,2.75219143,60811.0,60810.0,0.0037901]
[1723304139287,2.75702958,60811.0,60810.0,0.0037901]
[1723304139487,2.85549981,60811.0,60810.0,0.0037901]
[1723304140692,2.75702958,60811.0,60810.0,0.0037901]
[1723304141286,2.88011501,60811.0,60810.0,0.0037901]
[1723304141606,2.89011501,60811.0,60810.0,0.0037901]
[1723304142212,3.06025642,60811.0,60810.0,0.0037901]
[1723304142411,2.96017099,60811.0,60810.0,0.0037901]
[1723304143215,2.95987174,60811.0,60810.0,0.0037901]
[1723304144699,3.12402144,60811.0,60810.0,0.0037901]
[1723304145757,2.95987174,60811.0,60810.0,0.0037901]
[1723304146567,2.9601753,60811.0,60810.0,0.0037901]
[1723304148106,2.86524881,60811.0,60810.0,0.0787901]
[1723304148325,2.94384881,60811.0,60810.0,0.0787901]
[1723304148528,2.95384881,60811.0,60810.0,0.0787901]
[1723304149047,2.8715753,60811.0,60810.0,0.0787901]
[1723304149249,2.9501753,60811.0,60810.0,0.0787901]
[1723304149655,3.09803581,60811.0,60810.0,0.0787901]
[1723304150680,2.9601753,60811.0,60810.0,0.0787901]
[1723304150939,3.10851552,60811.0,60810.0,0.0787901]
[1723304151068,3.13428446,60811.0,60810.0,0.0787901]
[1723304151275,3.13428311,60811.0,60810.0,0.0787901]
[1723304151471,3.16827494,60811.0,60810.0,0.0787901]
[1723304151679,3.16881083,60811.0,60810.0,0.0037901]
[1723304151881,3.16881517,60811.0,60810.0,0.0037901]
[1723304152443,3.12482334,60811.0,60810.0,0.0037901]
[1723304153684,3.10849685,60811.0,60810.0,0.0844901]